fUSD/lending_fUSD_20260217
["ID","MTS","AMOUNT","RATE_DAILY","PERIOD"]
[405808140,1771330248329,-132144.8982213,0.00020276,2]
[405808141,1771330248338,-150.95186947,0.0002031,2]
[405808142,1771330248348,-151.26891317,0.0002031,2]
[405808143,1771330248357,-1751.06105486,0.00020329,2]
[405808144,1771330248369,-1600.0,0.00020399,2]
[405808145,1771330248388,-1634.63926674,0.0002041,30]
[405808146,1771330248407,-150.0,0.00020449,2]
[405808147,1771330248417,-150.0,0.00020449,2]
[405808148,1771330248427,-150.0,0.00020449,2]
[405808149,1771330248437,-150.0,0.00020449,2]
[405808150,1771330248447,-150.0,0.00020449,2]
[405808151,1771330248456,-150.0,0.00020449,2]
[405808152,1771330248466,-150.0,0.00020449,2]
[405808153,1771330248474,-150.0,0.00020449,2]
[405808154,1771330248484,-150.0,0.00020449,2]
[405808155,1771330248493,-1164.0,0.00020449,2]
[405808156,1771330248503,-3491.0,0.00020449,2]
[405808157,1771330248512,-617.0,0.00020449,2]
[405808158,1771330248522,-175.52034071,0.000205,2]
[405808159,1771330248531,-155.48,0.00020548,2]
[405808160,1771330248541,-275.22486912,0.00020584,5]
[405808161,1771330248550,-173.57638878,0.000206,30]
[405808162,1771330248560,-160.0,0.000206,30]
[405808163,1771330248569,-2231.7,0.00020628,2]
[405808164,1771330248579,-22723.22913216,0.000207,2]
[405808165,1771330248588,-3014.66080185,0.00020712,2]
[405808166,1771330248598,-29485.5123029,0.00020786,2]
[405808167,1771330248608,-501.0,0.00020897,5]
[405808168,1771330248618,-300.0,0.00020899,2]
[405808169,1771330248627,-394016.25324193,0.000209,30]
[405808170,1771330248636,-371.0,0.00020955,35]
[405808171,1771330248646,-250.0,0.00020955,35]
[405808172,1771330248656,-250.0,0.00020955,35]
[405808173,1771330248666,-253.0,0.00020955,35]
[405808174,1771330248675,-300.0,0.00020999,2]
[405808175,1771330248685,-373.67913322,0.00021,5]
[405808176,1771330248695,-20000.0,0.00021,2]
[405808177,1771330248704,-40000.0,0.00021,2]
[405808178,1771330248714,-1197.0004507,0.00021,2]
[405808179,1771330248723,-197.57488137,0.00021,2]
[405808180,1771330248733,-78143.76832471,0.00021,2]
[405808181,1771330248743,-173.57638878,0.00021,30]
[405808182,1771330248753,-400.0,0.00021,2]
[405808183,1771330248762,-160.0,0.00021,30]
[405808184,1771330248772,-500.0,0.00021014,7]
[405808185,1771330248781,-222.0,0.00021037,35]
[405808186,1771330248791,-250.0,0.00021037,35]
[405808187,1771330248800,-201.0,0.00021037,35]
[405808188,1771330248810,-301.0,0.00021119,35]
[405808189,1771330248820,-500.0,0.0002114,2]
[405808190,1771330248834,-500.0,0.0002123,2]
[405808191,1771330248854,-500.0,0.00021288,7]
[405808192,1771330248864,-775.47832561,0.00021313,2]
[405808193,1771330248875,-621.78829552,0.00021313,2]
[405808194,1771330248884,-1275.0,0.00021395,2]
[405808195,1771330248894,-1209.0,0.000214,2]
[405808196,1771330248904,-2452.0,0.000214,2]
[405808197,1771330248914,-5973.0,0.000214,2]
[405808198,1771330248924,-412.0,0.000214,2]
[405808199,1771330248935,-57726.48600323,0.000215,2]
[405808200,1771330248944,-501.0,0.00021546,6]
[405808201,1771330248954,-150.0,0.00021625,7]
[405808202,1771330248964,-396.0,0.00021691,2]
[405808203,1771330248974,-2000.0,0.00021836,7]
[405808204,1771330248984,-200.0,0.00021875,30]
[405808205,1771330248993,-583.69347785,0.00021899,7]
[405808206,1771330249003,-4331.07,0.00021918,30]
[405808207,1771330249013,-5000.0,0.00021918,2]
[405808208,1771330249022,-3043.88,0.00021918,2]
[405808209,1771330249032,-151.0,0.00021918,2]
[405808210,1771330249043,-151.0,0.00021918,2]
[405808211,1771330249052,-151.0,0.00021918,2]
[405808212,1771330249062,-151.0,0.00021918,2]
[405808213,1771330249072,-2103.539,0.00021918,2]
[405808214,1771330249082,-500.0,0.00021918,2]
[405808215,1771330249092,-160.57318335,0.00021966,2]
[405808216,1771330249102,-500.0,0.00021973,2]
[405808217,1771330249111,-2005.78371905,0.00022,2]
[405808218,1771330249122,-212046.95439905,0.00022,4]
[405808219,1771330249139,-197.70910267,0.00022,120]
[405808220,1771330249149,-3852.03307706,0.00022,2]
[405808221,1771330249163,-2794.0419246,0.00022,7]
[405808222,1771330249172,-151.0,0.00022,2]
[405808223,1771330249182,-131901.41064384,0.00022,2]
[405808224,1771330249192,-1145.15,0.00022,7]
[405808225,1771330249204,-173.57638878,0.00022,7]
[405808226,1771330249213,-160.0,0.00022,7]
[405808227,1771330249223,-435.55,0.00022,2]
[405808228,1771330249233,-400.0,0.00022,2]
[405808229,1771330249243,-396.0,0.00022017,2]
[405808230,1771330249253,-571.52386176,0.00022028,2]
[405808231,1771330249263,-400.0,0.00022192,7]
[405808232,1771330249273,-501.0,0.00022196,6]
[405808233,1771330249282,-360.45457926,0.00022222,30]
[405808234,1771330249292,-1600.0,0.00022439,2]
[405808235,1771330249302,-7262.45,0.00022466,2]
[405808236,1771330249312,-35620.91184209,0.000225,2]
[405808237,1771330249322,-3617.89176601,0.000226,2]
[405808238,1771330249333,-173.0767049,0.00022654,30]
[405808239,1771330249343,-153.344252,0.000227,2]
[405808240,1771330249354,-151.0,0.000227,2]
[405808241,1771330249364,-289.007678,0.000227,2]
[405808242,1771330249373,-151.0,0.000227,2]
[405808243,1771330249383,-492.668276,0.000227,2]
[405808244,1771330249393,-492.668276,0.000227,2]
[405808245,1771330249403,-492.668276,0.000227,2]
[405808246,1771330249415,-492.668276,0.000227,2]
[405808247,1771330249424,-1783.60803,0.000227,2]
[405808248,1771330249434,-1783.60803,0.000227,2]
[405808249,1771330249444,-1783.60803,0.000227,2]
[405808250,1771330249454,-1783.60803,0.000227,2]
[405808251,1771330249464,-167.064397,0.000227,2]
[405808252,1771330249474,-167.064397,0.000227,2]
[405808253,1771330249485,-167.064397,0.000227,2]
[405808254,1771330249495,-167.064397,0.000227,2]
[405808255,1771330249510,-457.741827,0.000227,2]
[405808256,1771330249519,-457.741827,0.000227,2]
[405808257,1771330249529,-457.741827,0.000227,2]
[405808258,1771330249539,-457.741827,0.000227,2]
[405808259,1771330249549,-151.0,0.000227,2]
[405808260,1771330249559,-151.0,0.000227,2]
[405808261,1771330249569,-151.0,0.000227,2]
[405808262,1771330249580,-275.978139,0.000227,2]
[405808263,1771330249590,-151.000017,0.000227,2]
[405808264,1771330249600,-2231.7,0.00022724,2]
[405808265,1771330249610,-501.0,0.00022845,7]
[405808266,1771330249620,-502.288578,0.00022873,2]
[405808267,1771330249630,-1145.15,0.000229,7]
[405808268,1771330249640,-304277.15551043,0.00023,2]
[405808269,1771330249650,-160.0,0.00023,3]
[405808270,1771330249660,-996.68607993,0.00023,2]
[405808271,1771330249670,-450.0,0.00023,2]
[405808272,1771330249680,-160.0,0.00023,2]
[405808273,1771330249690,-400.0,0.00023014,7]
[405808274,1771330249700,-162.0,0.000231,4]
[405808275,1771330249710,-800.0,0.0002318,8]
[405808276,1771330249720,-800.0,0.0002318,8]
[405808277,1771330249730,-800.0,0.0002318,8]
[405808278,1771330249740,-800.0,0.0002318,8]
[405808279,1771330249751,-800.0,0.0002318,8]
[405808280,1771330249762,-800.0,0.0002318,8]
[405808281,1771330249771,-800.0,0.0002318,8]
[405808282,1771330249781,-800.0,0.0002318,8]
[405808283,1771330249791,-500.0,0.00023206,7]
[405808284,1771330249801,-1001.67,0.00023288,30]
[405808285,1771330249811,-1740.011523,0.0002334,5]
[405808286,1771330249821,-2024.49231151,0.00023351,5]
[405808287,1771330249831,-150.0,0.00023449,2]
[405808288,1771330249841,-150.0,0.00023449,2]
[405808289,1771330249851,-150.0,0.00023449,2]
[405808290,1771330249861,-150.0,0.00023449,2]
[405808291,1771330249871,-150.0,0.00023449,2]
[405808292,1771330249881,-150.0,0.00023449,2]
[405808293,1771330249891,-150.0,0.00023449,2]
[405808294,1771330249901,-150.0,0.00023449,2]
[405808295,1771330249911,-1164.0,0.00023449,2]
[405808296,1771330249922,-3491.0,0.00023449,2]
[405808297,1771330249932,-500.0,0.0002348,7]
[405808298,1771330249942,-501.0,0.00023495,7]
[405808299,1771330249952,-1145.15,0.000238,7]
[405808300,1771330249962,-41815.56212707,0.00023891,5]
[405808301,1771330249972,-160.57318336,0.00023963,2]
[405808302,1771330249982,-3600.0,0.00024,2]
[405808303,1771330249991,-1239.88954826,0.00024,2]
[405808304,1771330250001,-160.0,0.00024,7]
[405808305,1771330250011,-10015.33732774,0.00024,2]
[405808306,1771330250021,-2000.0,0.00024028,7]
[405808307,1771330250031,-804.17102365,0.00024052,2]
[405808308,1771330250041,-415.5066665,0.00024052,2]
[405808309,1771330250051,-501.0,0.00024144,8]
[405808310,1771330250061,-404.0,0.00024164,7]
[405808311,1771330250071,-423.59034657,0.0002421,2]
[405808312,1771330250080,-3710.81446639,0.0002421,2]
[405808313,1771330250090,-1275.0,0.00024395,2]
[405808314,1771330250100,-1209.0,0.000244,2]
[405808315,1771330250110,-2452.0,0.000244,2]
[405808316,1771330250121,-5973.0,0.000244,2]
[405808317,1771330250134,-360.45457926,0.00024444,30]
[405808318,1771330250144,-1600.0,0.00024479,2]
[405808319,1771330250154,-396.0,0.00024565,2]
[405808320,1771330250164,-1000.0,0.00024658,2]
[405808321,1771330250175,-896.23,0.00024658,2]
[405808322,1771330250185,-151.0,0.00024658,2]
[405808323,1771330250195,-151.0,0.00024658,2]
[405808324,1771330250206,-151.0,0.00024658,2]
[405808325,1771330250216,-150.0,0.00024658,2]
[405808326,1771330250225,-2544.26230201,0.0002469,2]
[405808327,1771330250235,-320.0,0.00024753,10]
[405808328,1771330250245,-289.0,0.00024753,10]
[405808329,1771330250255,-501.0,0.00024794,9]
[405808330,1771330250265,-2231.7,0.00024819,2]
[405808331,1771330250275,-1145.15,0.000249,7]
[405808332,1771330250285,-153.093174,0.000249,2]
[405808333,1771330250296,-151.0,0.000249,2]
[405808334,1771330250306,-1930.66,0.000249,14]
[405808335,1771330250315,-151.0,0.000249,2]
[405808336,1771330250326,-157.404271,0.000249,2]
[405808337,1771330250335,-157.404271,0.000249,2]
[405808338,1771330250346,-157.404271,0.000249,2]
[405808339,1771330250355,-157.404271,0.000249,2]
[405808340,1771330250365,-151.0,0.000249,2]
[405808341,1771330250376,-163.98486622,0.000249,30]
[405808342,1771330250386,-511.42676219,0.00024903,2]
[405808343,1771330250396,-1115.75114374,0.00025,2]
[405808344,1771330250405,-207.85277651,0.00025,2]
[405808345,1771330250415,-129747.85049467,0.00025,60]
[405808346,1771330250426,-1787.79999521,0.00025,2]
[405808347,1771330250436,-890.57194181,0.00025,30]
[405808348,1771330250446,-18505.23820755,0.00025,2]
[405808349,1771330250456,-540.0,0.00025,2]
[405808350,1771330250467,-611.91107535,0.00025,2]
[405808351,1771330250476,-3049.49831659,0.00025,2]
[405808352,1771330250486,-7137.72032147,0.00025,2]
[405808353,1771330250496,-167.59841231,0.00025,2]
[405808354,1771330250505,-171.296778,0.00025,5]
[405808355,1771330250515,-531.0,0.00025,5]
[405808356,1771330250525,-160.0,0.00025,30]
[405808357,1771330250535,-307.16084148,0.00025,30]
[405808358,1771330250545,-150.0,0.00025,17]
[405808359,1771330250556,-1114.88415864,0.00025,60]
[405808360,1771330250566,-150.0,0.00025,2]
[405808361,1771330250575,-500.0,0.00025,2]
[405808362,1771330250585,-307.0,0.00025196,2]
[405808363,1771330250595,-320.0,0.00025244,12]
[405808364,1771330250605,-382.0,0.0002531,2]
[405808365,1771330250614,-396.0,0.0002534,2]
[405808366,1771330250624,-49615.12957072,0.0002539,2]
[405808367,1771330250634,-500.0,0.00025398,7]
[405808368,1771330250644,-396.0,0.00025438,2]
[405808369,1771330250653,-501.0,0.00025443,9]
[405808370,1771330250663,-28610.11146738,0.00025499,7]
[405808371,1771330250673,-4331.07,0.00025571,30]
[405808372,1771330250682,-500.0,0.00025672,7]
[405808373,1771330250692,-400.0,0.00025775,7]
[405808374,1771330250703,-435.55,0.00025786,7]
[405808375,1771330250712,-150.0,0.0002589,2]
[405808376,1771330250722,-601.95167502,0.0002599,2]
[405808377,1771330250731,-4531.08257578,0.00026,2]
[405808378,1771330250741,-216.86508435,0.00026,2]
[405808379,1771330250750,-150.0,0.00026,20]
[405808380,1771330250759,-1145.15,0.00026,7]
[405808381,1771330250768,-501.0,0.00026093,10]
[405808382,1771330250778,-151.0,0.000261,2]
[405808383,1771330250787,-151.0,0.000261,2]
[405808384,1771330250797,-151.0,0.000261,2]
[405808385,1771330250806,-300.0,0.000261,3]
[405808386,1771330250816,-300.0,0.000261,3]
[405808387,1771330250826,-300.0,0.000261,3]
[405808388,1771330250835,-300.0,0.000261,3]
[405808389,1771330250845,-300.0,0.000261,3]
[405808390,1771330250855,-2000.0,0.0002622,7]
[405808391,1771330250864,-162.0,0.000263,10]
[405808392,1771330250874,-27526.37085843,0.000264,2]
[405808393,1771330250884,-3491.0,0.00026449,2]
[405808394,1771330250894,-327.96973244,0.000265,30]
[405808395,1771330250904,-196837.22809,0.000266,2]
[405808396,1771330250914,-820.0,0.000266,2]
[405808397,1771330250924,-153.934786,0.000266,2]
[405808398,1771330250933,-151.0,0.000266,2]
[405808399,1771330250943,-151.0,0.000266,2]
[405808400,1771330250953,-151.0,0.000266,2]
[405808401,1771330250963,-151.0,0.000266,2]
[405808402,1771330250972,-501.0,0.00026742,10]
[405808403,1771330250982,-833.92535153,0.00026791,2]
[405808404,1771330250992,-2231.7,0.00026914,2]
[405808405,1771330251002,-321.01,0.00026986,120]
[405808406,1771330251012,-500.0,0.00027,2]
[405808407,1771330251022,-162.0,0.00027,14]
[405808408,1771330251031,-250.0,0.00027,2]
[405808409,1771330251041,-1036.49544833,0.00027,2]
[405808410,1771330251051,-530.0,0.00027,2]
[405808411,1771330251060,-469.56636817,0.00027,30]
[405808412,1771330251070,-23000.14654254,0.00027,3]
[405808413,1771330251079,-207.0,0.00027,23]
[405808414,1771330251089,-160.0,0.00027,3]
[405808415,1771330251099,-173.57638878,0.00027,3]
[405808416,1771330251108,-173.57638878,0.00027,3]
[405808417,1771330251118,-550.0,0.00027,2]
[405808418,1771330251129,-160.0,0.00027,3]
[405808419,1771330251139,-2000.0,0.00027,2]
[405808420,1771330251149,-2484.426364,0.0002701,2]
[405808421,1771330251158,-3695.39,0.00027123,2]
[405808422,1771330251169,-150.0,0.00027185,2]
[405808423,1771330251178,-500.0,0.000272,2]
[405808424,1771330251188,-1145.15,0.000272,7]
[405808425,1771330251202,-500.0,0.00027234,120]
[405808426,1771330251212,-150.0,0.00027369,2]
[405808427,1771330251221,-290.91353684,0.0002737,2]
[405808428,1771330251231,-227.47631694,0.0002737,2]
[405808429,1771330251241,-291.67455622,0.0002737,2]
[405808430,1771330251251,-157.05553027,0.0002737,2]
[405808431,1771330251261,-477.74556213,0.0002737,2]
[405808432,1771330251270,-344.92899408,0.0002737,2]
[405808433,1771330251280,-400.0,0.00027386,7]
[405808434,1771330251289,-4119.22740333,0.0002739,2]
[405808435,1771330251299,-8138.58514695,0.0002739,2]
[405808436,1771330251309,-570.61120273,0.0002739,120]
[405808437,1771330251319,-501.0,0.00027392,11]
[405808438,1771330251328,-334.21137291,0.00027393,2]
[405808439,1771330251338,-1275.0,0.00027395,2]
[405808440,1771330251348,-348.04019995,0.00027397,2]
[405808441,1771330251358,-348.04019995,0.00027397,2]
[405808442,1771330251368,-348.04019995,0.00027397,2]
[405808443,1771330251378,-348.04019995,0.00027397,2]
[405808444,1771330251388,-348.04019995,0.00027397,2]
[405808445,1771330251398,-348.04019995,0.00027397,2]
[405808446,1771330251408,-348.04019995,0.00027397,2]
[405808447,1771330251417,-348.04019995,0.00027397,2]
[405808448,1771330251427,-348.04019995,0.00027397,2]
[405808449,1771330251437,-348.04019995,0.00027397,2]
[405808450,1771330251447,-348.04019995,0.00027397,2]
[405808451,1771330251457,-348.04019995,0.00027397,2]
[405808452,1771330251466,-348.04019994,0.00027397,2]
[405808453,1771330251476,-348.04019994,0.00027397,2]
[405808454,1771330251486,-348.04019994,0.00027397,2]
[405808455,1771330251496,-348.04019994,0.00027397,2]
[405808456,1771330251506,-348.04019994,0.00027397,2]
[405808457,1771330251515,-348.04019994,0.00027397,2]
[405808458,1771330251525,-348.04019994,0.00027397,2]
[405808459,1771330251535,-348.04019994,0.00027397,2]
[405808460,1771330251759,-500.0,0.00027397,2]
[405808461,1771330251770,-500.0,0.00027397,2]
[405808462,1771330251780,-220.27357098,0.00027397,2]
[405808463,1771330251789,-1000.0,0.00027397,30]
[405808464,1771330251800,-1000.0,0.00027397,30]
[405808465,1771330251809,-1000.0,0.00027397,30]
[405808466,1771330251818,-1000.0,0.00027397,30]
[405808467,1771330251828,-1000.0,0.00027397,30]
[405808468,1771330251838,-1000.0,0.00027397,30]
[405808469,1771330251847,-274.16433771,0.00027397,30]
[405808470,1771330251856,-220.48493733,0.00027397,2]
[405808471,1771330251865,-500.0,0.00027397,120]
[405808472,1771330251874,-300.0,0.00027397,2]
[405808473,1771330251884,-896.23,0.00027397,2]
[405808474,1771330251894,-1000.0,0.00027397,20]
[405808475,1771330251904,-520.57,0.00027397,2]
[405808476,1771330251914,-485.621831,0.00027397,2]
[405808477,1771330251923,-485.621831,0.00027397,2]
[405808478,1771330251932,-485.621831,0.00027397,2]
[405808479,1771330251942,-485.621831,0.00027397,2]
[405808480,1771330251951,-485.621831,0.00027397,2]
[405808481,1771330251960,-485.621831,0.00027397,2]
[405808482,1771330251969,-485.621831,0.00027397,2]
[405808483,1771330251978,-485.621831,0.00027397,2]
[405808484,1771330251987,-1077.202168,0.00027397,2]
[405808485,1771330252001,-1077.202168,0.00027397,2]
[405808486,1771330252011,-1077.202168,0.00027397,2]
[405808487,1771330252021,-1077.202168,0.00027397,2]
[405808488,1771330252031,-1077.202168,0.00027397,2]
[405808489,1771330252041,-1077.202168,0.00027397,2]
[405808490,1771330252051,-1077.202168,0.00027397,2]
[405808491,1771330252061,-1077.202168,0.00027397,2]
[405808492,1771330252071,-151.0,0.00027397,2]
[405808493,1771330252081,-151.0,0.00027397,2]
[405808494,1771330252091,-151.0,0.00027397,2]
[405808495,1771330252100,-150.73098705,0.00027397,5]
[405808496,1771330252110,-1209.0,0.000274,2]
[405808497,1771330252120,-2452.0,0.000274,2]
[405808498,1771330252133,-5973.0,0.000274,2]
[405808499,1771330252142,-500.0,0.000275,2]
[405808500,1771330252151,-201.6923428,0.000275,2]
[405808501,1771330252163,-550.97761121,0.000275,2]
[405808502,1771330252173,-1000.0,0.00027563,2]
[405808503,1771330252182,-500.0,0.0002759,14]
[405808504,1771330252192,-400.0,0.00027616,14]
[405808505,1771330252204,-3357.45058791,0.00027642,2]
[405808506,1771330252215,-396.0,0.00027793,2]
[405808507,1771330252225,-1000.0,0.00027837,2]
[405808508,1771330252235,-2000.0,0.0002786,2]
[405808509,1771330252244,-2000.0,0.0002786,2]
[405808510,1771330252254,-1176.8054,0.0002786,2]
[405808511,1771330252264,-2000.0,0.0002786,2]
[405808512,1771330252273,-2000.8282,0.0002786,2]
[405808513,1771330252284,-2000.0,0.0002786,2]
[405808514,1771330252294,-1000.0,0.00027864,90]
[405808515,1771330252303,-500.0,0.00027864,14]
[405808516,1771330252313,-500.0,0.00027899,8]
[405808517,1771330252323,-501.29157219,0.0002797,2]
[405808518,1771330252333,-185.1829756,0.00028,3]
[405808519,1771330252343,-153.0,0.00028,3]
[405808520,1771330252352,-160.0,0.00028,2]
[405808521,1771330252362,-151.0,0.00028,2]
[405808522,1771330252376,-500.0,0.00028,2]
[405808523,1771330252386,-47773.49002844,0.00028,2]
[405808524,1771330252397,-150000.0,0.00028,120]
[405808525,1771330252407,-444.33213336,0.00028,2]
[405808526,1771330252417,-200.0,0.00028,120]
[405808527,1771330252427,-491.95459866,0.00028,30]
[405808528,1771330252437,-501.0,0.00028041,12]
[405808529,1771330252447,-1000.0,0.00028111,2]
[405808530,1771330252457,-550.98049433,0.00028118,7]
[405808531,1771330252466,-182.0,0.0002824,3]
[405808532,1771330252476,-1159.33833103,0.00028297,120]
[405808533,1771330252485,-1145.15,0.000283,7]
[405808534,1771330252495,-382.0,0.00028384,2]
[405808535,1771330252504,-1000.0,0.00028385,2]
[405808536,1771330252514,-838.0,0.000284,120]
[405808537,1771330252524,-2000.0,0.00028412,14]
[405808538,1771330252534,-159.42,0.00028493,2]
[405808539,1771330252543,-152.0,0.00028499,3]
[405808540,1771330252553,-500.0,0.000285,2]
[405808541,1771330252566,-150.0,0.00028544,2]
[405808542,1771330252576,-1000.0,0.00028659,2]
[405808543,1771330252586,-501.0,0.00028691,12]
[405808544,1771330252597,-495.43698509,0.00028767,2]
[405808545,1771330252607,-508.20125622,0.00028799,8]
[405808546,1771330252617,-500.0,0.00028799,8]
[405808547,1771330252627,-231.0,0.0002882,30]
[405808548,1771330252637,-189.36637923,0.00028825,2]
[405808549,1771330252647,-360.45457926,0.00028889,30]
[405808550,1771330252657,-1000.0,0.00028933,2]
[405808551,1771330252667,-400.0,0.00028997,14]
[405808552,1771330252677,-301.13007058,0.00029,2]
[405808553,1771330252687,-1701.6456684,0.00029,120]
[405808554,1771330252696,-503.56381156,0.00029,2]
[405808555,1771330252706,-158.396759,0.00029,7]
[405808556,1771330252717,-485.621831,0.00029,7]
[405808557,1771330252727,-485.621831,0.00029,7]
[405808558,1771330252737,-485.621831,0.00029,7]
[405808559,1771330252750,-485.621831,0.00029,7]
[405808560,1771330252761,-1077.202168,0.00029,7]
[405808561,1771330252771,-1077.202168,0.00029,7]
[405808562,1771330252781,-492.668276,0.00029,7]
[405808563,1771330252791,-1077.202168,0.00029,7]
[405808564,1771330252801,-492.668276,0.00029,7]
[405808565,1771330252811,-1077.202168,0.00029,7]
[405808566,1771330252822,-492.668276,0.00029,7]
[405808567,1771330252833,-492.668276,0.00029,7]
[405808568,1771330252843,-1783.60803,0.00029,7]
[405808569,1771330252852,-1783.60803,0.00029,7]
[405808570,1771330252862,-1783.60803,0.00029,7]
[405808571,1771330252872,-1783.60803,0.00029,7]
[405808572,1771330252881,-167.064397,0.00029,7]
[405808573,1771330252892,-167.064397,0.00029,7]
[405808574,1771330252902,-167.064397,0.00029,7]
[405808575,1771330252911,-167.064397,0.00029,7]
[405808576,1771330252921,-457.741827,0.00029,7]
[405808577,1771330252932,-457.741827,0.00029,7]
[405808578,1771330252948,-457.741827,0.00029,7]
[405808579,1771330252958,-457.741827,0.00029,7]
[405808580,1771330252968,-2231.7,0.00029009,2]
[405808581,1771330252978,-2835.0,0.000292,3]
[405808582,1771330252988,-2835.0,0.000292,3]
[405808583,1771330252998,-1000.0,0.00029207,2]
[405808584,1771330253008,-4331.07,0.00029224,30]
[405808585,1771330253018,-500.0,0.00029234,14]
[405808586,1771330253028,-500.0,0.00029264,120]
[405808587,1771330253038,-501.0,0.0002934,13]
[405808588,1771330253048,-1145.15,0.000294,7]
[405808589,1771330253058,-1000.0,0.00029481,2]
[405808590,1771330253068,-500.0,0.00029508,14]
[405808591,1771330253078,-864.78058953,0.0002953,2]
[405808592,1771330253088,-381.0,0.00029532,2]
[405808593,1771330253098,-435.55,0.00029572,30]
[405808594,1771330253107,-152.0,0.00029603,4]
[405808595,1771330253117,-6001.36620396,0.00029698,2]
[405808596,1771330253130,-1000.0,0.00029755,2]
[405808597,1771330253142,-400.0,0.0002987,2]
[405808598,1771330253152,-79120.88866613,0.000299,2]
[405808599,1771330253163,-150.0,0.000299,7]
[405808600,1771330253173,-150.0,0.000299,7]
[405808601,1771330253183,-150.0,0.000299,7]
[405808602,1771330253194,-150.0,0.000299,7]
[405808603,1771330253205,-212.57143527,0.000299,7]
[405808604,1771330253215,-150.0,0.000299,7]
[405808605,1771330253225,-150.0,0.000299,7]
[405808606,1771330253235,-150.0,0.000299,7]
[405808607,1771330253245,-150.0,0.000299,7]
[405808608,1771330253255,-150.0,0.000299,7]
[405808609,1771330253265,-150.0,0.000299,7]
[405808610,1771330253276,-150.38158881,0.000299,7]
[405808611,1771330253286,-150.0,0.00029971,2]
[405808612,1771330253297,-501.0,0.0002999,13]
[405808613,1771330253307,-237.90182293,0.0002999,2]
[405808614,1771330253316,-500.0,0.00029999,8]
[405808615,1771330253327,-178.16028333,0.0003,120]
[405808616,1771330253337,-8253.05497171,0.0003,3]
[405808617,1771330253347,-336.72681726,0.0003,120]
[405808618,1771330253358,-19922.70212468,0.0003,2]
[405808619,1771330253368,-310.09455633,0.0003,120]
[405808620,1771330253378,-2038.02488567,0.0003,120]
[405808621,1771330253389,-320.21870017,0.0003,2]
[405808622,1771330253399,-1822.79236907,0.0003,2]
[405808623,1771330253409,-400.0,0.0003,20]
[405808624,1771330253419,-515.56351099,0.0003,30]
[405808625,1771330253428,-163.50321094,0.0003,2]
[405808626,1771330253440,-256.40186491,0.0003,15]
[405808627,1771330253450,-736.0,0.0003,120]
[405808628,1771330253460,-2455.0,0.0003,90]
[405808629,1771330253470,-500.0,0.0003,120]
[405808630,1771330253480,-151.612,0.0003,2]
[405808631,1771330253490,-7513.1121498,0.0003,2]
[405808632,1771330253500,-500.0,0.0003,2]
[405808633,1771330253510,-150.0,0.0003,2]
[405808634,1771330253520,-2029.0,0.0003,20]
[405808635,1771330253530,-1000.0,0.0003,120]
[405808636,1771330253539,-160.0,0.0003,120]
[405808637,1771330253549,-160.0,0.0003,3]
[405808638,1771330253558,-152.73,0.0003,2]
[405808639,1771330253569,-152.73,0.0003,2]